bitfinex/quotes_ETHUSD_20250725
["timestamp","ask_amount","ask_price","bid_price","bid_amount"]
[1753454087873,0.002,3669.0,3668.6,2.72579646]
[1753454088027,1.3978,3668.9,3667.9,2.72635568]
[1753454088268,0.03407108,3668.8,3668.1,2.72614782]
[1753454088544,0.03407108,3668.8,3668.4,0.136]
[1753454088746,1.3978,3668.7,3668.4,0.136]
[1753454089048,0.03407108,3668.8,3668.5,2.72590977]
[1753454089221,0.002,3669.0,3668.6,0.136]
[1753454089222,0.9535,3668.7,3668.6,0.136]
[1753454089426,0.136,3668.6,3668.1,0.136]
[1753454089621,2.72605838,3668.4,3668.1,0.136]
[1753454089828,2.7261363,3668.2,3667.5,2.7266056]
[1753454090042,1.43187572,3668.3,3667.8,0.136]
[1753454090043,0.03407758,3668.1,3667.8,0.136]
[1753454090279,0.4443,3668.0,3667.9,2.72635568]
[1753454090487,0.4443,3668.0,3667.8,0.136]
[1753454090624,0.4443,3668.0,3667.4,0.136]
[1753454090625,2.72648461,3667.8,3667.4,0.136]
[1753454090825,2.72672738,3667.4,3667.3,0.136]
[1753454091071,0.136,3667.2,3666.7,0.136]
[1753454091369,0.4443,3667.2,3666.6,2.72731529]
[1753454091591,5.4253,3667.3,3667.0,0.136]
[1753454091732,1.43188595,3667.2,3667.0,0.136]
[1753454091930,0.136,3667.1,3666.5,0.136]
[1753454092148,4.977,3667.1,3666.6,0.01365209]
[1753454092461,0.4443,3667.0,3666.6,0.136]
[1753454092662,4.976,3666.9,3666.8,2.72717355]
[1753454092888,4.976,3666.9,3666.8,2.86317355]
[1753454093048,0.136,3667.3,3666.8,0.136]
[1753454093049,4.975,3667.0,3666.8,0.136]
[1753454093250,1.3357,3666.8,3664.4,1.4107]
[1753454093451,1.3357,3666.6,3664.5,0.9467]
[1753454093654,4.985,3666.5,3664.6,0.35087814]
[1753454093865,2.72984227,3663.3,3662.9,5.01463043]
[1753454094185,1.3496,3663.1,3661.8,0.9467]
[1753454094360,0.03412503,3663.0,3661.8,0.9467]
[1753454094557,1.3496,3663.1,3661.8,0.9467]
[1753454094558,1.3496,3663.1,3662.3,2.73049931]
[1753454094871,1.3496,3663.1,3662.3,0.9467]
[1753454095069,2.6838,3663.7,3662.3,3.9467]
[1753454095370,2.6838,3663.7,3662.6,2.73025085]
[1753454095548,1.7303,3663.7,3663.2,2.72984781]
[1753454095753,1.286,3663.7,3662.4,2.73044997]
[1753454095950,1.286,3663.7,3663.1,2.72992318]
[1753454096151,1.286,3663.7,3662.9,2.73006923]
[1753454096354,1.286,3663.7,3662.5,2.73037542]
[1753454096552,1.286,3663.7,3663.4,2.7296966]
[1753454096767,1.7303,3663.7,3663.2,2.72980923]
[1753454097087,1.3978,3663.6,3662.4,3.0]
[1753454097260,0.4443,3663.6,3663.5,2.72963013]
[1753454097460,1.3978,3663.6,3662.5,0.9467]
[1753454097667,1.43191944,3663.6,3663.5,2.72963013]
[1753454098000,1.3978,3663.6,3662.1,0.9477]
[1753454098492,1.3978,3663.6,3663.2,2.72985213]
[1753454098703,1.43192037,3663.5,3662.1,0.9477]
[1753454098885,0.4784213,3663.4,3662.1,0.001]
[1753454099188,0.4784213,3663.4,3662.3,3.0]
[1753454099409,0.9535,3663.3,3662.1,0.001]
[1753454099555,0.55,3663.0,3662.1,0.001]
[1753454099753,0.55,3662.8,3662.1,0.001]
[1753454100076,2.76438214,3662.7,3662.1,0.001]
[1753454100282,1.3978,3662.7,3662.1,2.73163435]
[1753454100452,1.3978,3662.7,3662.1,0.001]
[1753454100453,0.4443,3662.7,3662.1,0.001]
[1753454100657,2.73048333,3662.4,3662.1,0.001]
[1753454100885,1.368,3662.2,3662.1,0.001]
[1753454101066,6.422,3662.2,3662.1,0.001]
[1753454101283,1.8123,3662.2,3662.1,2.73167365]
[1753454101574,0.4443,3662.2,3662.1,0.001]
[1753454101774,2.7658,3662.2,3662.1,0.001]
[1753454101973,7.8268,3662.2,3662.1,0.001]
[1753454102390,0.55,3662.1,3661.6,0.004]
[1753454102555,0.55,3662.1,3660.6,0.2505]
[1753454102556,0.55,3661.8,3660.6,0.2505]
[1753454102755,0.03413714,3661.7,3660.6,0.2505]
[1753454102984,4.12886803,3661.6,3660.6,2.98228748]
[1753454103184,1.3978,3661.5,3660.6,0.2505]
[1753454103488,6.6016,3661.5,3660.7,2.88188246]
[1753454103786,6.6016,3661.5,3660.7,0.15019489]
[1753454103985,6.6016,3661.5,3661.0,2.73149061]
[1753454104303,6.5976,3661.5,3660.9,0.1368]
[1753454104503,1.5346,3661.5,3660.7,0.15019489]
[1753454104714,1.5346,3661.5,3660.7,0.28699489]
[1753454105002,5.5063,3661.5,3661.0,2.73148762]
[1753454105207,5.5063,3661.5,3660.7,0.15019489]
[1753454105208,6.4598,3661.5,3660.7,0.15019489]
[1753454105388,10.12709322,3661.5,3660.7,0.15019489]
[1753454105691,3.28119571,3661.4,3660.7,0.15019489]
[1753454105986,1.3821,3661.3,3660.7,0.15019489]
[1753454106162,2.86844335,3660.8,3660.7,0.15019489]
[1753454106366,9.44998889,3660.8,3660.7,0.15019489]
[1753454106587,7.90234883,3660.8,3660.7,0.15019489]
[1753454106797,6.6832,3660.8,3660.7,0.15019489]
[1753454107182,11.33044335,3660.8,3660.7,0.15019489]
[1753454107568,8.5988,3660.8,3660.7,0.15019489]
[1753454107758,1.5024,3660.8,3660.7,0.15019489]
[1753454107959,1.2761,3661.3,3660.7,0.15019489]
[1753454108156,2.296,3662.0,3661.9,2.73082279]
[1753454108354,1.2761,3662.0,3661.6,2.73098187]
[1753454108570,1.51253528,3661.9,3660.7,0.15019489]
[1753454108868,0.55,3661.8,3660.7,0.15019489]
[1753454109069,3.28109845,3661.6,3660.7,0.15019489]
[1753454109273,0.49263901,3661.5,3660.8,2.73164176]
[1753454109614,0.4585,3662.1,3660.7,0.15019489]
[1753454109906,1.3304,3662.2,3662.1,2.73067365]
[1753454110261,1.3336,3662.7,3662.6,2.73030087]
[1753454110478,1.3336,3663.4,3663.3,2.72977916]
[1753454110691,6.4026,3663.9,3663.6,2.72948554]
[1753454110992,0.4585,3664.6,3664.0,2.72924763]
[1753454111168,0.03411106,3664.5,3664.4,2.72895972]
[1753454111368,5.5255,3664.6,3663.6,0.935]
[1753454111594,1.3619,3664.7,3664.6,2.72881078]
[1753454111895,6.555,3666.1,3664.6,2.72881078]
[1753454111896,0.4585,3665.3,3664.8,2.72863817]
[1753454112187,0.4585,3665.3,3664.9,2.72857107]
[1753454112391,0.4585,3665.2,3663.3,1.3938]
[1753454112599,2.7285398,3665.0,3663.8,2.72940662]
[1753454112802,6.57150734,3664.9,3663.3,1.3938]
[1753454113002,0.03410827,3664.8,3663.4,0.935]
[1753454113498,3.1870268,3665.0,3663.4,0.935]
[1753454113795,0.03410734,3664.9,3663.4,0.935]
[1753454113970,1.05400734,3664.9,3663.4,0.935]
[1753454114175,2.72873632,3664.7,3663.4,3.6646681]
[1753454114494,2.72917969,3664.2,3663.4,0.935]
[1753454114712,0.03411478,3664.1,3663.1,2.72991748]
[1753454114917,0.03411478,3664.1,3663.0,3.66500066]
[1753454115123,0.03411478,3664.1,3663.0,0.935]
[1753454115293,6.8444,3664.3,3662.8,2.3093]
[1753454115493,6.8444,3664.3,3663.5,2.72961316]
[1753454115680,7.903717,3664.3,3663.3,0.935]
[1753454115876,1.51251385,3664.2,3662.8,0.935]
[1753454116090,2.72959242,3663.6,3662.3,1.3288]
[1753454116318,0.49262037,3663.5,3662.5,2.73035498]
[1753454116519,2.72933957,3663.9,3662.4,2.73044997]
[1753454116810,0.03411572,3664.0,3662.4,2.73044997]
[1753454116811,0.4585,3664.0,3662.6,0.935]
[1753454117016,0.03411665,3663.9,3663.2,2.72984618]
[1753454117185,6.3859,3664.3,3663.1,0.935]
[1753454117386,2.72923603,3664.1,3663.3,2.72977384]
[1753454117602,1.4784,3664.2,3663.6,2.72954066]
[1753454117795,1.4784,3664.2,3663.5,2.72962086]
[1753454117796,4.20750996,3664.2,3663.5,2.72962086]
[1753454117994,4.20750996,3664.2,3663.6,2.72955555]
[1753454117995,0.1368,3663.8,3663.6,2.72955555]
[1753454118196,0.1368,3663.8,3663.7,2.72948112]
[1753454118418,6.3859,3664.3,3664.2,2.72910867]
[1753454118581,1.4784,3664.8,3664.4,2.72890515]
[1753454118582,1.8741,3664.8,3664.4,2.72890515]
[1753454118784,0.1368,3664.5,3664.0,0.1368]
[1753454118988,0.1368,3664.6,3664.5,2.72888525]
[1753454119185,0.1368,3664.9,3664.8,2.72866186]
[1753454119409,0.1368,3664.9,3664.0,0.935]
[1753454119410,5.045,3665.3,3664.4,0.1368]
[1753454119715,0.1368,3665.2,3664.6,0.1368]
[1753454119924,0.1368,3665.2,3665.0,2.7285104]
[1753454120120,0.1368,3665.2,3664.6,0.1368]
[1753454120331,0.03410548,3665.1,3663.7,0.935]
[1753454120496,0.1368,3664.8,3664.3,0.1368]
[1753454120683,0.4926092,3664.7,3664.3,0.1368]
[1753454120885,1.4013,3664.3,3663.6,0.1368]
[1753454121085,0.1368,3664.1,3663.6,0.1368]
[1753454121287,0.1368,3664.1,3663.2,3.0]
[1753454121288,1.51251572,3664.0,3663.2,2.72979724]
[1753454121515,0.1368,3663.7,3663.0,0.1368]
[1753454121723,0.03411944,3663.6,3663.0,0.1368]
[1753454121943,0.4585,3663.5,3662.3,1.363]
[1753454122102,0.1368,3663.1,3662.5,0.1368]
[1753454122283,0.03412503,3663.0,3662.5,0.1368]
[1753454122489,0.1368,3663.1,3662.5,0.1368]
[1753454122735,1.3041,3663.4,3661.9,3.0]
[1753454122930,1.4409,3663.4,3662.8,2.86693692]
[1753454123084,0.03412223,3663.3,3662.9,2.73006446]
[1753454123284,0.1368,3663.4,3663.3,2.72977916]
[1753454123485,0.1368,3663.7,3663.2,0.1368]
[1753454123688,0.1368,3663.8,3663.3,2.72972894]
[1753454123919,0.1368,3663.8,3663.2,0.1368]
[1753454124122,6.5023,3664.0,3663.5,0.1368]
[1753454124297,6.5023,3664.0,3663.9,2.72933213]
[1753454124498,5.1578,3664.0,3663.9,2.72933213]
[1753454124799,1.38168621,3668.6,3663.9,2.72933213]
[1753454124800,2.8411,3665.3,3664.6,2.72881078]
[1753454124989,2.8411,3665.3,3663.9,2.72928096]
[1753454124990,2.72879649,3664.7,3663.9,2.72928096]
[1753454125189,0.03411013,3664.6,3664.2,0.1368]
[1753454125424,0.03411013,3664.6,3663.5,1.3233]
[1753454125628,0.1368,3664.0,3663.5,0.1368]
[1753454125824,0.49261665,3663.9,3662.9,0.935]
[1753454126025,3.1878385,3663.9,3663.2,2.72982108]
[1753454126321,0.4585,3663.9,3663.3,2.72976724]
[1753454126510,0.4585,3663.9,3662.9,0.935]
[1753454126717,0.49261665,3663.9,3663.2,2.72983918]
[1753454127010,0.49261665,3663.9,3662.9,0.935]
[1753454127011,5.01,3664.0,3662.9,0.935]
[1753454127325,5.01,3664.0,3662.9,2.730019]
[1753454127326,0.03411665,3663.9,3662.9,2.730019]
[1753454127512,0.03411665,3663.9,3662.7,3.0]
[1753454127716,2.72948112,3663.7,3662.7,2.73022495]
[1753454127913,0.03411944,3663.6,3662.4,2.2583]
[1753454128127,2.72984956,3663.3,3662.4,3.66542973]
[1753454128373,3.18794596,3663.8,3662.2,2.73057161]
[1753454128374,1.0199,3663.7,3663.0,2.72992899]
[1753454128524,0.49261758,3663.8,3662.6,2.73030087]
[1753454128692,0.49261758,3663.8,3662.5,0.935]
[1753454128898,0.4585,3664.4,3662.7,1.2947]
[1753454129146,1.3471,3664.7,3663.1,2.7299282]
[1753454129294,1.3471,3664.7,3662.5,4.995]
[1753454129295,2.367,3665.3,3663.5,1.2947]
[1753454129498,0.03410455,3665.2,3663.6,0.935]
[1753454129799,0.4585,3665.1,3664.2,2.7290469]
[1753454129995,0.03410641,3665.0,3663.6,0.935]
[1753454130317,2.72893384,3664.5,3663.3,3.0]
[1753454130522,4.994,3664.5,3663.3,2.72973026]
[1753454130823,4.994,3664.5,3663.0,4.2971]
[1753454130824,1.3805,3664.8,3664.1,2.72912855]
[1753454131031,9.10118492,3664.8,3664.1,2.72912855]
[1753454131228,2.72911343,3664.2,3663.4,0.935]
[1753454131428,2.72897569,3664.4,3663.1,2.7299282]
[1753454131599,0.4926092,3664.7,3663.0,2.2321]
[1753454131795,1.28111012,3664.7,3663.8,2.72938073]
[1753454131996,2.72885814,3664.6,3663.2,2.72985367]
[1753454132196,1.28111012,3664.7,3663.3,2.72972429]
[1753454132427,1.24700092,3664.7,3663.0,1.2971]
[1753454132615,4.988,3664.6,3663.4,0.935]
[1753454132920,4.988,3664.6,3663.5,2.72963013]
[1753454133119,0.4585,3665.2,3664.8,2.72864376]
[1753454133328,0.4585,3665.2,3664.3,2.72903419]
[1753454133558,1.4164,3665.8,3665.3,2.72828963]
[1753454133881,4.979,3666.0,3665.3,2.72828963]
[1753454134077,4.979,3666.0,3665.3,3.66328963]
[1753454134241,1.4164,3666.4,3665.3,3.66328963]
[1753454134636,2.72765396,3666.2,3665.3,3.66328963]
[1753454134962,4.1438738,3666.4,3664.8,2.72859313]
[1753454134963,0.4585,3666.0,3664.8,2.72859313]
[1753454135169,2.72792778,3665.8,3665.1,2.72842497]
[1753454135663,2.72807739,3665.6,3664.8,2.72864709]
[1753454135864,3.1863343,3666.0,3664.6,2.72881065]
[1753454136065,0.1368,3665.2,3664.7,2.72873406]
[1753454136267,0.1368,3665.2,3664.6,2.8655876]
[1753454136571,0.03410548,3665.1,3664.6,0.1368]
[1753454136864,0.002,3665.4,3664.7,0.9653]
[1753454137066,0.002,3665.4,3665.3,0.1368]
[1753454137438,0.002,3665.4,3665.3,3.83038963]
[1753454138172,0.002,3665.4,3665.3,0.1368]
[1753454138468,0.002,3665.4,3665.2,0.1368]
[1753454139076,0.4285,3665.3,3664.1,0.9653]
[1753454139242,0.4285,3665.3,3664.9,0.1368]
[1753454139665,2.86703092,3665.4,3664.9,0.1368]
[1753454139861,2.72829681,3665.3,3664.9,0.1368]
[1753454140144,0.1388,3665.4,3664.9,0.1368]
[1753454140445,2.72841326,3665.2,3664.9,0.1368]
[1753454140647,2.72851296,3665.0,3664.9,0.1368]
[1753454140847,2.72864447,3664.9,3664.7,0.1368]
[1753454141076,2.76263681,3665.0,3664.7,0.1368]
[1753454141274,1.3666,3665.2,3664.7,0.1368]
[1753454141487,0.002,3665.4,3664.8,0.9653]
[1753454142048,0.002,3665.4,3664.9,2.72857353]
[1753454142243,0.002,3665.4,3664.8,3.69394774]
[1753454142495,0.002,3665.4,3664.9,2.72856465]
[1753454142654,0.002,3665.4,3664.8,0.9653]
[1753454142987,2.73027537,3665.4,3664.8,0.9653]
[1753454143493,0.002,3665.4,3664.8,0.9653]
[1753454144178,2.72831376,3665.3,3664.8,0.9653]
[1753454144374,0.002,3665.4,3664.8,0.9653]
[1753454144551,0.002,3665.4,3664.8,3.69395258]
[1753454145095,0.002,3665.4,3664.8,0.9653]
[1753454145758,0.002,3665.4,3664.8,3.69389005]
[1753454145960,0.002,3665.4,3664.8,3.69391101]
[1753454146162,0.002,3665.4,3664.8,0.9653]
[1753454146761,0.002,3665.4,3665.0,2.72850534]
[1753454146958,0.002,3665.4,3664.9,2.72858537]
[1753454147269,0.002,3665.4,3664.8,0.9653]
[1753454147491,0.002,3665.4,3665.1,2.72841862]
[1753454147690,0.002,3665.4,3665.2,2.72835561]
[1753454147893,0.002,3665.4,3665.0,0.9653]
[1753454148313,0.002,3665.4,3665.1,3.69367998]
[1753454148606,0.002,3665.4,3665.1,0.9653]
[1753454148976,0.002,3665.4,3665.1,3.69372749]
[1753454149159,0.002,3665.4,3664.7,1.3629]
[1753454149364,0.002,3665.4,3664.8,2.72866186]
[1753454149578,0.002,3665.4,3664.7,2.3282]
[1753454149579,0.002,3665.4,3664.9,2.72853132]
[1753454149774,2.72841815,3665.2,3664.7,0.9653]
[1753454150002,2.72830448,3665.3,3664.7,3.69397075]
[1753454150199,2.7283442,3665.3,3664.7,0.9653]
[1753454150416,2.73026035,3665.4,3664.7,3.69403398]
[1753454150573,0.002,3665.4,3664.7,0.9653]
[1753454150774,0.002,3665.4,3664.8,2.72866186]
[1753454151301,0.002,3665.4,3665.3,2.72828963]
[1753454151483,0.002,3665.4,3665.3,2.86508963]
[1753454151664,0.002,3665.4,3665.3,0.1368]
[1753454152895,0.002,3665.4,3665.3,2.86508963]
[1753454153167,0.002,3665.4,3665.3,3.83038963]
[1753454153396,0.002,3665.4,3664.3,3.0]
[1753454153397,0.002,3665.4,3664.5,0.9653]
[1753454153582,0.4285,3665.3,3664.5,0.9653]
[1753454153910,0.4285,3665.3,3664.9,2.72853483]
[1753454154071,0.002,3665.4,3664.3,3.0]
[1753454154273,0.002,3665.4,3665.0,2.7284578]
[1753454154467,0.002,3665.4,3664.9,0.9653]
[1753454154468,0.002,3665.4,3665.3,2.72828963]
[1753454154886,0.002,3665.4,3665.3,3.69358963]
[1753454155314,0.002,3665.4,3665.3,8.56558963]
[1753454155724,1e-08,3665.4,3665.3,8.56558963]
[1753454155899,1e-08,3665.4,3665.3,11.59558963]
[1753454156673,1e-08,3665.4,3665.3,13.54718963]
[1753454156971,1e-08,3666.2,3666.1,7.12929428]
[1753454157175,1e-08,3666.2,3666.1,11.99229428]
[1753454157487,1e-08,3666.2,3666.1,13.53759428]
[1753454158077,1e-08,3666.2,3666.1,8.12459428]
[1753454158522,1e-08,3666.2,3666.1,12.98259428]
[1753454158691,1e-08,3666.2,3666.1,8.12459428]
[1753454159386,1e-08,3666.2,3666.1,13.52759428]
[1753454159810,1e-08,3666.2,3666.1,13.72790297]
[1753454160216,1e-08,3666.2,3666.1,8.29490297]
[1753454160421,1e-08,3666.2,3666.1,8.97929428]
[1753454160623,1e-08,3666.2,3666.1,9.94459428]
[1753454160819,1e-08,3666.2,3666.1,12.94459428]
[1753454161005,1e-08,3666.2,3666.1,12.94259428]
[1753454161207,1e-08,3666.2,3666.1,4.844]
[1753454161409,0.42850001,3666.2,3666.1,4.844]
[1753454161621,0.42850001,3666.2,3665.1,0.9653]
[1753454161622,0.42850001,3666.2,3665.0,2.72846351]
[1753454161789,0.42850001,3666.2,3665.8,2.7279006]
[1753454161986,1e-08,3666.2,3666.1,2.72769428]
[1753454162186,0.42850001,3666.2,3665.7,2.72799095]
[1753454162390,0.4285,3666.1,3666.0,2.72776868]
[1753454162615,0.4285,3666.1,3666.0,7.56676868]
[1753454163122,1e-08,3666.2,3666.1,2.72769428]
[1753454163496,1.37010001,3666.2,3666.1,4.837]
[1753454163694,1.37010001,3666.2,3666.0,0.136]
[1753454163929,0.4285,3666.1,3666.0,0.136]
[1753454164109,1.3701,3666.1,3666.0,0.136]
[1753454164512,1.3701,3666.1,3664.6,1.38]
[1753454164823,1.3701,3666.0,3665.5,0.1368]
[1753454165327,1.3701,3665.9,3665.5,0.1368]
[1753454165487,0.4285,3665.8,3665.4,4.83]
[1753454165687,2.6445,3665.7,3664.6,1.38]
[1753454165909,2.6445,3665.7,3665.5,0.1368]
[1753454166220,0.4682,3665.6,3665.5,0.1368]
[1753454166422,1.4033,3666.1,3665.7,2.72792387]
[1753454166628,1.4033,3666.1,3665.6,2.72805103]
[1753454166930,1.452,3666.0,3665.9,0.136]
[1753454167227,1.4033,3666.1,3666.0,2.72776868]
[1753454167413,1e-08,3666.2,3666.1,2.72769428]
[1753454167793,1e-08,3666.2,3666.1,7.54469428]
[1753454167989,1e-08,3666.2,3666.1,7.68069428]
[1753454168194,1e-08,3666.2,3666.1,7.67869428]
[1753454168421,1e-08,3666.2,3666.1,2.86369428]
[1753454169126,1e-08,3666.2,3666.1,0.136]
[1753454169326,0.46820001,3666.2,3666.1,4.947]
[1753454169941,0.46820001,3666.2,3666.1,0.136]
[1753454170104,1.45200001,3666.2,3666.1,0.136]
[1753454170302,1.45200001,3666.2,3665.5,7.53210793]
[1753454170631,1.45200001,3666.2,3665.9,0.136]
[1753454170836,0.4682,3666.1,3665.9,0.136]
[1753454171194,1e-08,3666.2,3665.9,0.136]
[1753454171396,0.4682,3666.0,3665.9,0.136]
[1753454171600,5.66956578,3666.0,3665.1,2.72840617]
[1753454171823,5.66956578,3666.0,3665.5,0.1368]
[1753454171824,0.50229803,3665.9,3665.5,0.1368]
[1753454172131,4.17992026,3665.8,3665.5,0.1368]
[1753454172336,1.452,3665.7,3665.5,0.1368]
[1753454173131,1.452,3665.7,3665.6,2.72806634]
[1753454173331,1.3105,3666.0,3665.8,2.72787187]
[1753454173642,0.002,3666.1,3666.0,2.72776868]
[1753454175854,1e-08,3666.1,3666.0,3.0]
[1753454176092,1e-08,3666.1,3666.0,2.72776868]
[1753454177619,1e-08,3666.1,3665.8,2.72785594]
[1753454177620,1.45200001,3666.1,3665.6,2.72801456]
[1753454177825,1.452,3666.0,3664.9,2.72858741]
[1753454178018,1.452,3666.0,3664.5,0.20502009]
[1753454178019,1.48609803,3665.9,3664.5,0.20502009]
[1753454178254,1.3585,3665.8,3663.8,1.3983]
[1753454178449,1.3585,3665.8,3663.9,4.775]
[1753454178450,2.72864543,3664.9,3663.9,4.775]
[1753454178612,0.50230827,3664.8,3663.9,4.775]
[1753454178817,1.3585,3664.7,3663.9,2.72927711]
[1753454179147,4.21492718,3664.6,3663.9,4.775]
[1753454179348,4.21492718,3664.6,3662.4,2.73043678]
[1753454179349,2.72918263,3664.2,3663.2,2.72984104]
[1753454179555,1.48611478,3664.1,3663.4,2.72969548]
[1753454179714,1.48611478,3664.1,3663.0,4.774]
[1753454179912,1.452,3664.1,3663.2,2.72985367]
[1753454180212,0.4682,3664.1,3663.3,2.72977916]
[1753454180453,0.9838,3664.5,3663.7,2.72946697]
[1753454180625,0.9838,3664.5,3663.2,0.9318]
[1753454180829,0.9838,3664.5,3664.0,2.72923143]
[1753454181024,0.4682,3664.4,3663.5,2.72957192]
[1753454181242,1.452,3664.4,3663.9,2.72930411]
[1753454181459,0.4682,3664.3,3663.7,2.72947393]
[1753454181760,1.452,3664.3,3663.4,3.0]
[1753454181962,4.63332317,3664.2,3663.3,2.72971949]
[1753454182270,2.72941167,3663.8,3662.8,2.73015179]
[1753454182444,0.03411851,3663.7,3662.8,2.7301482]
[1753454182768,1.452,3663.6,3662.7,7.765]
[1753454182936,1.452,3663.6,3663.5,2.72963013]
[1753454183139,1.3449,3664.0,3662.8,6.66194987]
[1753454183339,1.3449,3664.0,3662.8,3.9318]
[1753454183539,1.3449,3664.0,3663.1,3.0]
[1753454183834,4.07422032,3664.0,3662.8,0.9318]
[1753454184035,1.452,3663.9,3663.0,3.0]
[1753454184249,1.3449,3664.0,3663.7,2.72943093]
[1753454184457,0.4682,3663.9,3663.1,3.0]
[1753454184664,0.4682,3663.9,3663.8,2.72940662]
[1753454184867,1.8131,3664.5,3664.3,2.72903419]
[1753454185053,1.8131,3664.5,3663.6,3.0]
[1753454185258,1.3449,3664.5,3664.2,2.72909296]
[1753454185554,1.452,3664.4,3664.1,3.0]
[1753454185868,1.452,3664.4,3663.5,0.9318]
[1753454185869,1.452,3664.9,3664.3,2.72903419]
[1753454186069,0.4682,3664.9,3664.4,2.72895972]
[1753454186275,0.9838,3665.3,3664.6,2.86560631]
[1753454186276,0.1368,3665.1,3664.6,2.86560631]
[1753454186459,2.72857393,3665.0,3664.6,0.1368]
[1753454186644,1.452,3664.9,3664.6,0.1368]
[1753454186846,1.452,3664.9,3663.8,2.72935423]
[1753454186847,0.03410827,3664.8,3663.8,2.72935423]
[1753454187176,2.72882074,3664.6,3664.2,0.1368]
[1753454187346,2.72903419,3664.3,3664.2,0.1368]
[1753454187549,2.72903419,3664.3,3664.0,0.1368]
[1753454187739,0.03411199,3664.4,3664.0,0.1368]
[1753454187740,1.452,3664.2,3664.0,0.1368]
[1753454187941,0.4682,3664.1,3664.0,0.1368]
[1753454188881,1.3483,3664.3,3664.1,2.72912459]
[1753454189190,0.9838,3664.7,3664.2,0.1368]
[1753454189394,0.4682,3664.3,3663.8,0.001]
[1753454189562,0.03411385,3664.2,3663.8,0.001]
[1753454189765,1.48611385,3664.2,3663.8,0.001]
[1753454190056,0.1368,3665.0,3664.1,0.1368]
[1753454190417,1.5888,3665.1,3664.7,2.72873632]
[1753454190571,4.74,3665.8,3664.7,3.9318]
[1753454190572,1.4105,3665.6,3664.7,3.9318]
[1753454190780,0.98380001,3666.1,3664.8,0.9318]
[1753454190781,2.39430001,3666.1,3664.8,0.9318]
[1753454190975,1.452,3666.0,3664.9,3.0]
[1753454191312,1.452,3665.9,3664.9,5.72853667]
[1753454191510,1.41050001,3666.1,3665.0,0.9318]
[1753454191786,1.41050001,3666.1,3665.5,2.72808862]
[1753454191959,1.41050001,3666.1,3665.0,0.9318]
[1753454191960,1.41050001,3666.1,3665.4,2.72819718]
[1753454192155,1.4860971,3666.0,3665.2,2.72835694]
[1753454192371,1.41050001,3666.1,3664.6,0.9318]
[1753454192372,0.4682,3665.9,3664.6,0.9318]
[1753454192575,0.03409896,3665.8,3665.2,3.0]
[1753454192755,1.452,3665.9,3665.4,2.72816811]
[1753454192954,0.4682,3665.9,3664.9,3.9318]
[1753454193158,0.9838,3665.8,3664.9,3.0]
[1753454193362,0.50229989,3665.7,3664.9,2.72852211]
[1753454193794,0.9838,3665.6,3663.8,0.001]
[1753454194106,2.72826827,3665.4,3663.8,0.001]
[1753454194283,0.03410362,3665.3,3664.0,2.72925764]
[1753454194470,2.2826,3665.6,3663.8,2.73040628]
[1753454194471,1.452,3665.2,3663.9,2.72933213]
[1753454194671,0.03410548,3665.1,3664.5,2.72887018]
[1753454194995,1.452,3665.2,3664.1,3.0]
[1753454195183,1.452,3665.2,3663.9,3.0]
[1753454195184,0.4682,3665.2,3663.9,3.0]
[1753454195408,0.03410548,3665.1,3664.1,0.9318]
[1753454195700,1.314,3664.9,3664.3,2.72899842]
[1753454195858,1.314,3664.9,3664.1,3.0]
[1753454196061,0.03410827,3664.8,3664.4,3.0]
[1753454196261,1.4463,3664.7,3663.8,3.001]
[1753454196502,1.4463,3664.7,3664.3,2.72901025]
[1753454196685,1.4463,3664.6,3664.4,2.72893709]
[1753454196887,1.4463,3664.6,3664.5,2.72888525]
[1753454196888,0.9739,3664.6,3664.5,2.72888525]
[1753454197186,0.9739,3664.6,3663.8,0.001]
[1753454197388,0.50651106,3664.5,3664.1,2.72916851]
[1753454197694,1.4463,3664.5,3664.2,2.72904263]
[1753454197899,1.314,3664.9,3664.3,2.7290237]
[1753454197900,1.4463,3664.4,3664.3,2.7290237]
[1753454198399,0.4724,3664.4,3664.3,2.7290237]
[1753454198761,0.4724,3664.4,3664.2,2.72909016]
[1753454198962,0.4724,3664.4,3664.3,2.72903419]
[1753454199165,0.9739,3664.8,3663.8,0.001]
[1753454199670,1.7864,3664.9,3663.8,0.9607]
[1753454199871,1.7864,3664.9,3664.8,2.72866186]
[1753454200271,4.721,3665.3,3664.8,2.7286082]
[1753454200486,0.03410455,3665.2,3664.0,0.9597]
[1753454200797,1.3226,3665.4,3664.8,0.1368]
[1753454200961,1.3226,3665.4,3664.1,2.72916735]
[1753454200962,1.3226,3665.4,3665.1,0.1368]
[1753454201174,2.72841524,3665.2,3664.4,5.72890418]
[1753454201378,0.1368,3665.0,3664.3,0.1368]
[1753454201580,0.6092,3665.0,3664.5,2.728813]
[1753454201873,1.4463,3664.9,3664.5,2.728813]
[1753454202079,0.4724,3664.8,3664.5,2.728813]
[1753454202305,0.4724,3664.8,3664.6,2.72879484]
[1753454202683,1.795,3665.4,3664.4,3.0]
[1753454203003,0.03410362,3665.3,3664.8,2.72866186]
[1753454203188,1.4463,3665.2,3664.9,2.72851984]
[1753454203365,1.4463,3665.2,3664.7,0.1368]
[1753454203566,1.4463,3665.2,3665.1,2.72843851]
[1753454203797,0.4724,3665.2,3664.7,0.1368]
[1753454204092,0.4724,3665.2,3665.1,2.72843851]
[1753454204864,2.72857087,3665.0,3664.7,0.1368]
[1753454205069,1.48040734,3664.9,3664.1,2.72918315]
[1753454205266,1.4463,3664.9,3664.0,6.36]
[1753454205502,0.4724,3664.9,3664.8,2.72866186]
[1753454205662,2.2965,3665.4,3664.1,3.0]
[1753454205663,0.4724,3665.3,3664.9,2.72855376]